Cogmind - Beta 12 @@@ ROGUE MODE // 2023.05.05 @ 07:42:38 Player: Mr Goldstein Result: Destroyed by H-61 Shepherd with Heavy Assault Cannon Performance ------------- Evolutions (2) 1000 Regions Visited (6) 1200 Robots Destroyed (1) 5 Value Destroyed (1) 1 Prototype IDs (23) 460 Alien Tech Used (0) 0 Bonus (500) 500 TOTAL SCORE: 3166 Bonus ------- Pacifist 200 Aligned with FarCom 300 Cogmind --------- Core Integrity 0/550 Matter 244/300 Energy 100/100 System Corruption 0% Temperature Cool (0) Movement Core (50) Location -8/Materials Parts ------- > --- POWER (2) -------- (None) > --- PROPULSION (2) --- (None) > --- UTILITY (5) ------ Hacking Suite > --- WEAPON (2) ------- (None) > --- INVENTORY (5) ---- Trap Reconfigurator Peak State ------------ > --- POWER ------------ (None) > --- PROPULSION ------- VTOL Module > --- UTILITY ---------- Hacking Suite > --- WEAPON ----------- (None) > --- INVENTORY -------- Trap Reconfigurator [Rating: 5] Favorites ----------- Power None Propulsion Light Treads Treads Light Treads Flight Unit VTOL Module Utility Hacking Suite Hackware Hacking Suite Weapon Mini Grenade Launcher Launcher Mini Grenade Launcher Build | -11 -10 -9 -9 -9 -8 -8 ------- Run | Jun Mat Mat Min Exi Min Mat Slots Evolved 4 | . . 2 . . . 2 Power 1 | . . . . . . 1 Propulsion . | . . . . . . . Utility 3 | . . 2 . . . 1 Weapon . | . . . . . . . Parts Attached 5 | 2 . . 1 1 . 1 Power . | . . . . . . . Engine . | . . . . . . . Core . | . . . . . . . Reactor . | . . . . . . . Propulsion 3 | 2 . . . 1 . . Treads 2 | 2 . . . . . . Leg . | . . . . . . . Wheel . | . . . . . . . Hover . | . . . . . . . Flight 1 | . . . . 1 . . Utility 1 | . . . . . . 1 Device . | . . . . . . . Storage . | . . . . . . . Processor . | . . . . . . . Hackware 1 | . . . . . . 1 Protection . | . . . . . . . Artifact . | . . . . . . . Weapon 1 | . . . 1 . . . Energy Gun . | . . . . . . . Energy Cannon . | . . . . . . . Ballistic Gun . | . . . . . . . Ballistic Cannon . | . . . . . . . Launcher 1 | . . . 1 . . . Special Weapon . | . . . . . . . Impact Weapon . | . . . . . . . Slashing Weapon . | . . . . . . . Piercing Weapon . | . . . . . . . Special Melee Weapon . | . . . . . . . Unidentified Prototypes . | . . . . . . . Parts Lost 4 | . . . 2 . 1 1 Power . | . . . . . . . Propulsion 3 | . . . 2 . . 1 Utility . | . . . . . . . Weapon 1 | . . . . . 1 . Highest Loss Streak 2 | . . . 2 . 1 1 To Critical Strikes 1 | . . . 1 . . . Average Slot Usage (%) 18 | . 28 22 16 14 22 10 Treads 7 | . 28 22 7 . . . Flight 3 | . . . . 3 11 6 Launcher 6 | . . . 9 11 11 . Naked Turns . | . . . . . . . Heaviest Build 1 | . . . 1 1 1 . Greatest Support 4 | 3 3 3 3 4 4 4 Greatest Overweight (x) . | . . . . . . . Average Overweight (x) . | . . . . . . . Largest Inventory Capacity 5 | 5 5 5 5 5 5 5 Average Capacity 5 | 5 5 5 5 5 5 5 Most Carried 2 | . . 2 2 2 1 1 Average Carried . | . . . 1 1 1 1 Final Capacity 5 | 5 5 5 5 5 5 5 Final Carried 2 | . . 2 1 1 1 1 Class Distribution -------------------- 100% | Mutant Dominant Class ---------------- Mutant | -10/Materials Mutant | -9/Materials Mutant | -9/Mines Mutant | -9/Exiles Mutant | -8/Mines Mutant | -8/Materials Resources | -11 -10 -9 -9 -9 -8 -8 ----------- Run | Jun Mat Mat Min Exi Min Mat Matter Collected 228 | 187 . . 24 . 14 3 Remotely . | . . . . . . . Salvage Created 44 | . . . 44 . . . Parts 1 | . . . 1 . . . Haulers Intercepted . | . . . . . . . Recyclers Shooed . | . . . . . . . Parts Field Recycled . | . . . . . . . Retrieved Matter . | . . . . . . . Parts Self-Destructed . | . . . . . . . Prevented . | . . . . . . . Kills | -11 -10 -9 -9 -9 -8 -8 ------- Run | Jun Mat Mat Min Exi Min Mat Combat Hostiles Destroyed 12 | . . . 12 . . . AOE 12 | . . . 12 . . . Classes Destroyed 2 | . . . 2 . . . Worker 1 | . . . 1 . . . Assembled 12 | . . . 12 . . . Best Kill Streak 13 | . . . 13 . . . Combat Bots Only 12 | . . . 12 . . . Max Kills in Single Turn 5 | . . . 5 . . . Gunslinging . | . . . . . . . Exploded 5 | . . . 5 . . . Melee . | . . . . . . . Uniques/NPCs Destroyed . | . . . . . . . Combat | -11 -10 -9 -9 -9 -8 -8 -------- Run | Jun Mat Mat Min Exi Min Mat Damage Taken 1003 | . 130 111 165 . 2 595 Core 652 | . 26 44 19 . . 563 Absorbed by Shields . | . . . . . . . Core Remaining (%) 91 | 100 89 . . . 84 . Volleys Fired 5 | . . . 5 . . . Largest 1 | . . . 1 . . . Hottest 30 | . . . 30 . . . Shots Fired 6 | . . . 6 . . . Gun . | . . . . . . . Cannon . | . . . . . . . Launcher 6 | . . . 6 . . . Special . | . . . . . . . Kinetic . | . . . . . . . Thermal . | . . . . . . . Explosive 6 | . . . 6 . . . Electromagnetic . | . . . . . . . Robot Hit Streak 3 | . . . 3 . . . Robot Miss Streak 1 | . . . 1 . . . Penetration Max . | . . . . . . . Secondary Targets . | . . . . . . . Shots Hit Robots 3 | . . . 3 . . . Core Hits 31 | . . . 31 . . . Critical Kills . | . . . . . . . Critical Parts Destroyed . | . . . . . . . Critical Strikes . | . . . . . . . Melee Attacks . | . . . . . . . Impact . | . . . . . . . Slashing . | . . . . . . . Piercing . | . . . . . . . Sneak Attacks . | . . . . . . . Combat Hostiles . | . . . . . . . Follow-up Attacks . | . . . . . . . Damage Inflicted 919 | 1 . . 914 . 4 . Guns . | . . . . . . . Cannons . | . . . . . . . Explosions 914 | . . . 914 . . . Melee . | . . . . . . . Ramming 5 | 1 . . . . 4 . Kinetic . | . . . . . . . Thermal . | . . . . . . . Explosive 914 | . . . 914 . . . Electromagnetic . | . . . . . . . Impact . | . . . . . . . Slashing . | . . . . . . . Piercing . | . . . . . . . Highest Corruption 3 | 2 3 2 2 2 2 . Average Corruption 2 | 2 2 2 2 2 2 . Corruption Purged . | . . . . . . . Corruption Blocked . | . . . . . . . Effects 8 | 1 1 . 1 3 2 . Message Errors 2 | 1 . . . 1 . . Heat Flow Errors 1 | . 1 . . . . . Energy Discharges 2 | . . . . 2 . . Data Loss (minor) 1 | . . . . . 1 . Data Loss (major) 1 | . . . . . 1 . Misfires 1 | . . . 1 . . . Overload Shots . | . . . . . . . Overflow Damage 32 | . . . 32 . . . Projectiles . | . . . . . . . Explosions 32 | . . . 32 . . . Melee . | . . . . . . . Knockbacks . | . . . . . . . Impact . | . . . . . . . Kinetic . | . . . . . . . Secondary . | . . . . . . . Self-Inflicted Damage 41 | . . . 39 . 2 . Shots 1 | . . . 1 . . . Rammed 2 | 1 . . . . 1 . Targets Rammed 2 | 1 . . . . 1 . Kicked . | . . . . . . . Crushed . | . . . . . . . Highest Temperature 84 | . 84 . 2 . . . Average Temperature 31 | . 46 . 2 . . . Received Heat Transfer 177 | . 42 63 . . . 72 Siege Activations . | . . . . . . . Robots Corrupted . | . . . . . . . Combat Hostiles . | . . . . . . . Parts Fried . | . . . . . . . Impact Corruptions . | . . . . . . . Robots Melted . | . . . . . . . Combat Hostiles . | . . . . . . . Parts Melted . | . . . . . . . Heat Transferred . | . . . . . . . Parts Sabotaged . | . . . . . . . Parts Stolen . | . . . . . . . Parts Stripped . | . . . . . . . Power Chain Reactions . | . . . . . . . Missiles Intercepted . | . . . . . . . Alert | -11 -10 -9 -9 -9 -8 -8 ------- Run | Jun Mat Mat Min Exi Min Mat Peak Influence 93 | . 30 42 62 . 45 93 Initial 16 | . . 12 16 . . 13 Average 22 | . 12 24 42 . 1 52 Maximum Alert Level . | . . . . . . . Low Security (%) 100 | 100 100 100 100 . 100 100 Level 1 . | . . . . . . . Level 2 . | . . . . . . . Level 3 . | . . . . . . . Level 4 . | . . . . . . . Level 5 . | . . . . . . . High Security . | . . . . . . . Max Security . | . . . . . . . Squads Dispatched 5 | . 2 1 . . . 2 Investigation 3 | . 2 1 . . . . Extermination . | . . . . . . . Reinforcement 2 | . . . . . . 2 Assault . | . . . . . . . Garrison . | . . . . . . . Intercept . | . . . . . . . Searches Triggered . | . . . . . . . Construction Impeded . | . . . . . . . Haulers Reinforced . | . . . . . . . Active Scanning Responses . | . . . . . . . Cargo Convoy Interrupts . | . . . . . . . Stealth | -11 -10 -9 -9 -9 -8 -8 --------- Run | Jun Mat Mat Min Exi Min Mat Distress Signals 2 | . . 1 . . . 1 Communications Jammed . | . . . . . . . Distress Signals . | . . . . . . . Times Spotted 53 | . 6 11 19 . 3 14 Peak Tracking Total 20 | . 6 10 20 . 3 14 Tactical Retreats 3 | . . 1 . . 1 1 Traps | -11 -10 -9 -9 -9 -8 -8 ------- Run | Jun Mat Mat Min Exi Min Mat Traps Triggered 2 | . 1 1 . . . . Indirectly . | . . . . . . . Trap Hack Attempts . | . . . . . . . Triggered . | . . . . . . . Disarmed . | . . . . . . . Reprogrammed . | . . . . . . . Reused . | . . . . . . . Traps Extracted . | . . . . . . . Installed . | . . . . . . . Triggered . | . . . . . . . Machines | -11 -10 -9 -9 -9 -8 -8 ---------- Run | Jun Mat Mat Min Exi Min Mat Machines Disabled . | . . . . . . . Max in Single Turn . | . . . . . . . Machines Repaired . | . . . . . . . Machines Sabotaged . | . . . . . . . Overloaded Fab Kills . | . . . . . . . Hacking | -11 -10 -9 -9 -9 -8 -8 --------- Run | Jun Mat Mat Min Exi Min Mat Machines Accessed 6 | . 2 2 . 1 . 1 Terminals 4 | . 1 2 . . . 1 Fabricators . | . . . . . . . Repair Stations . | . . . . . . . Recycling Units 1 | . 1 . . . . . Scanalyzers . | . . . . . . . Garrison Access . | . . . . . . . Total Hacks 12 | . 4 5 . 1 . 2 Successful 5 | . 1 3 . 1 . . Failed 7 | . 3 2 . . . 2 Catastrophic 5 | . 1 2 . . . 2 Database Lockouts . | . . . . . . . Manual 12 | . 4 5 . 1 . 2 Terminals 10 | . 3 5 . . . 2 Fabricators . | . . . . . . . Repair Stations . | . . . . . . . Recycling Units 1 | . 1 . . . . . Scanalyzers . | . . . . . . . Garrison Access . | . . . . . . . Terminal Hacks 2 | . . 1 . 1 . . Branch Access Points 1 | . . 1 . . . . EX-Prototype ID Bank 1 | . . . . 1 . . Fabricator Hacks . | . . . . . . . Repair Station Hacks . | . . . . . . . Recycling Unit Hacks . | . . . . . . . Scanalyzer . | . . . . . . . Garrison Access Hacks . | . . . . . . . Unauthorized Hacks 3 | . 1 2 . . . . Terminals 2 | . . 2 . . . . Botnet 2 | . . 2 . . . . Fabricators . | . . . . . . . Repair Stations . | . . . . . . . Recycling Units 1 | . 1 . . . . . Tunnel 1 | . 1 . . . . . Scanalyzers . | . . . . . . . Garrison Access . | . . . . . . . Data Cores Recovered . | . . . . . . . Used . | . . . . . . . Hacking Detections 4 | . 1 2 . . . 1 Full Trace Events 3 | . 1 1 . . . 1 Feedback Events . | . . . . . . . Feedback Blocked . | . . . . . . . Robot Schematics Acquired . | . . . . . . . Robots Built . | . . . . . . . Authchips . | . . . . . . . Time . | . . . . . . . Total Robot Build Rating . | . . . . . . . Part Schematics Acquired . | . . . . . . . Parts Built . | . . . . . . . Authchips . | . . . . . . . Time . | . . . . . . . Total Part Build Rating . | . . . . . . . Parts Repaired . | . . . . . . . Time . | . . . . . . . Parts Recycled . | . . . . . . . Recycled Matter . | . . . . . . . Retrieved Matter . | . . . . . . . Retrieved Components . | . . . . . . . Parts Scanalyzed . | . . . . . . . Part Schematics Acquired . | . . . . . . . Parts Damaged . | . . . . . . . Bothacking | -11 -10 -9 -9 -9 -8 -8 ------------ Run | Jun Mat Mat Min Exi Min Mat Used RIF Installer . | . . . . . . . Robots Hacked . | . . . . . . . Non-combat . | . . . . . . . Combat . | . . . . . . . Robot Hacks Applied . | . . . . . . . Relay Couplers Released . | . . . . . . . Fabnet Peak Effective % . | . . . . . . . Robots Rewired . | . . . . . . . Allies Hacked . | . . . . . . . Hacks Repelled . | . . . . . . . Allies | -11 -10 -9 -9 -9 -8 -8 -------- Run | Jun Mat Mat Min Exi Min Mat Total Allies 2 | . . . 2 . . . Largest Group 2 | . . . 2 2 . . Highest-Rated Group 43 | . . . 43 43 . . Highest-Rated Ally 31 | . . . 31 31 . . Total Orders . | . . . . . . . Ally Attacks . | . . . . . . . Total Damage . | . . . . . . . Kills . | . . . . . . . Allies Corrupted . | . . . . . . . Allies Melted . | . . . . . . . Intel | -11 -10 -9 -9 -9 -8 -8 ------- Run | Jun Mat Mat Min Exi Min Mat Robot Analysis Total . | . . . . . . . Derelict Logs Recovered . | . . . . . . . Drone Launches . | . . . . . . . Drone Recoveries . | . . . . . . . Exploration | -11 -10 -9 -9 -9 -8 -8 ------------- Run | Jun Mat Mat Min Exi Min Mat Turns Passed 460 | 20 75 51 55 115 81 63 Spaces Moved 916 | 33 149 97 53 216 216 152 Core 522 | 33 149 97 53 140 . 50 Treads . | . . . . . . . Legs . | . . . . . . . Wheels . | . . . . . . . Hover . | . . . . . . . Flight 394 | . . . . 76 216 102 Fastest Speed 35 | 50 50 50 50 35 35 35 Average Speed 43 | 50 50 50 50 44 35 39 Slowest Speed 50 | 50 50 50 50 50 35 50 Overloaded Moves . | . . . . . . . Propulsion Burnouts . | . . . . . . . Robots Hopped 6 | . . . . . 5 1 Cave-ins Triggered . | . . . . . . . Exploration Rate (%) 31 | 3 37 23 18 60 49 31 Regions Visited 6 Branch Regions 3 Pre-discovered Areas 1 | . 1 . . . . . Known Exits Taken 1 | . . 1 . . . . Unknown Exits Taken 5 | 1 1 . 1 1 1 . Scrap Searched 1 | . . . . . 1 . Spaces Dug 12 | . . . 12 . . . Terrain Destroyed 44 | . . . 44 . . . Melee . | . . . . . . . Projectile . | . . . . . . . AOE 44 | . . . 44 . . . Terrain Rammed . | . . . . . . . Walls Destroyed . | . . . . . . . Machines Disabled . | . . . . . . . Actions | -11 -10 -9 -9 -9 -8 -8 --------- Run | Jun Mat Mat Min Exi Min Mat Total 957 | 35 148 98 75 233 216 152 Wait 33 | . . . 17 16 . . Move 899 | 32 148 96 52 215 206 150 Hop 6 | . . . . . 5 1 Pick Up 3 | . . 2 . 1 . . Fast Attach 3 | 2 . . . . . 1 Attach 2 | . . . 1 1 . . Detach . | . . . . . . . Swap . | . . . . . . . Drop . | . . . . . . . Fire 5 | . . . 5 . . . Melee . | . . . . . . . Ram 1 | 1 . . . . . . Kick . | . . . . . . . Crush . | . . . . . . . Escape Stasis . | . . . . . . . Rewire 5 | . . . . . 5 . Trap . | . . . . . . . Miscellaneous . | . . . . . . . Route ------- -11/Junkyard -10/Materials -9/Materials -9/Mines -9/Exiles -8/Mines -8/Materials (discovered 3 exits: [*Fac] / [*Sto x2]) History --------- Turn | Location | Event 4 | -11/Junkyard | Discovered new exit (range 13) 21 | -11/Junkyard | Entered Materials 86 | -10/Materials | Discovered new exit (range 16) 96 | -10/Materials | Entered another Materials area 96 | -9/Materials | Evolved 2 slots: Utility x2 110 | -9/Materials | Identified exit to Mines 147 | -9/Materials | Entered Mines 150 | -9/Mines | Assembled infested the area 169 | -9/Mines | Met 8R-AWN 187 | -9/Mines | Destroyed 12 combat bots 192 | -9/Mines | Discovered new exit (range 5) 202 | -9/Mines | Entered Exiles 202 | -9/Exiles | Accompanied by 2 allies 225 | -9/Exiles | Welcomed by 8R-AWN 232 | -9/Exiles | Led the pair of lost Derelicts to a safe place 243 | -9/Exiles | Met EX-HEX 258 | -9/Exiles | Met EX-BIN 264 | -9/Exiles | Aligned with FarCom system 264 | -9/Exiles | Given EX-Vault access code 276 | -9/Exiles | Opened EX-Vault 279 | -9/Exiles | Found Trap Reconfigurator 292 | -9/Exiles | Warned to stay clear of 0b10 Research branches 301 | -9/Exiles | Met EX-DEC 309 | -9/Exiles | Build established: Mutant 313 | -9/Exiles | Discovered new exit (range 10) 317 | -9/Exiles | Left Exiles lab with Trap Reconfigurator 317 | -9/Exiles | Entered Mines 388 | -8/Mines | Discovered new exit (range 13) 398 | -8/Mines | Entered Materials 398 | -8/Materials | Evolved 2 slots: Power x1, Utility x1 413 | -8/Materials | Discovered new exit (range 16) 417 | -8/Materials | Discovered new exit (range 8) 453 | -8/Materials | Core integrity fell below 50% 457 | -8/Materials | Core integrity fell below 20% 460 | -8/Materials | Discovered new exit (range 16) 461 | -8/Materials | Destroyed by H-61 Shepherd with Heavy Assault Cannon Last Messages --------------- 00413_ EXIT=FOUND 00425_ ALERT: Hostiles spotted, dispatching reinforcements to Terminal M010. 00433_ Acquired Hacking Suite. 00442_ K-01 Serf collects debris. 00444_ VTOL Module destroyed. 00444_ ALERT: Suspicious intruders detected, dispatching Cutter reinforcements to area. 00447_ K-01 Serf collects debris. 00450_ Knocked back. 00450_ K-01 Serf collects debris. 00452_ Knocked back. 00454_ K-01 Serf collects debris. 00454_ Knocked back. 00455_ Acquired 3 matter. 00455_ Knocked back. 00458_ C-17 Slicer knocked back. 00459_ K-01 Serf destroyed. 00460_ K-01 Serf cleans the Electrolysis Chamber. 00460_ EXIT=FOUND Map ----- +----------------------------------------------------+ | ??????????????????????????????????? | | ??????????????????????????????????? | | ??????????????????????????????????? | | ??????????????????????????????????? | | ??????????????????????????????????? | | ??????????????????????????????????? | | ??????????????????????????????????? | | ??????????????????????????????????? | | ??????????????????????????????????? | | ??????????????????????????????????? | | ??????????????????????? < ????????? | | ??????????????????????# ????????? | | ??????????????????????# ????????? | | ??????????????????????# ????????? | | ??????????????????????# ????????? | | ??????????????????????# ????????? | | ??????????????????????# #???????? | | ??????????????????????# #???????? | | ??????????????????????# #???????? | | ??????????????????????# +???????? | | ?????????????????? ??# #??###### | | ???????????????????"??# #??"" # | | ???????????????????" ?# #?"Y" # | | ???????????????????? ?# #?" " # | | ????????????????????? # # # | | ???????????????#????? # @# # | | ???????????????# ?"???+ c # | | ???????????????# ""???#Y # """ # | | ???????????????# ??# # """ # | | ???????????????? ??#=c #? """ ? | | ????????########? ?#% #? k ? | | ????????# #?? ?# % #?? # | | ????????# """ #???" # % #??###### | | ????????# """ #????# # #???????? | | ??????### """ #?????# ##??????? | | ??????? / #?????# ##?????? | | ????????? ???????# #?????? | | ???????####/########## #?????? | | ???????# % a #?????? | | ???????# gg H #?????? | | ???????# % g % ! #?????? | | ???????# ########### ##?????? | | ???????# #?????????#######??????? | | ######?# #??????????????????????? | | # #??????????????????????? | | # #??????????????????????? | | "" """ + #??????????????????????? | | "" """ # ####???????????????????? | | "" """ # !##??????????????????? | | ?# !#??????????????????? | +----------------------------------------------------+ Best States ------------- Heat Dissipation 31 Energy Generation 5 Energy Capacity 100 Matter Stores 270 Matter Capacity 300 Sight Range 16 Terrain Scan Density 10 Evasion (%) 63 Offensive Hacking 10 Item Schematics ----------------- None Robot Schematics ------------------ None Fabricated ------------ Nothing Alien Tech Used ----------------- None Achievements -------------- None Challenges ------------ None Game ------ Seed SkeletonTachyonInsulator Manual? 0 Play Time 00:06:55 Cumulative 174.7 hours Start 2023.05.05 @ 07:36:39 End 2023.05.05 @ 07:42:38 Sessions 1 Manual Loads 0 Difficulty Rogue Special Mode None Game No. 521 Rogue 521 Adventurer 0 Explorer 0 Win Type - Total 8 Types 7/0/0/1/0/0/0/0/0 Lore% 71 Gallery% 74 Achievement% 65 Wizard Run 0 Options --------- ASCII 0 Keyboard 0 Movement Numpad Keybinds 0 Fullscreen 1 Font 16/SmallcapsGlow Map View 75x55 Tactical HUD 1 Map Filters NONE Filters NONE Steam 1 RUN: b6c5f965-241f-4805-b463-6a24e164ff64